bitfinex/quotes_BTCUSD_20241216
["timestamp","ask_amount","ask_price","bid_price","bid_amount"]
[1734357694156,0.0768724,103760.0,103750.0,0.14542197]
[1734357694329,0.0768724,103760.0,103750.0,0.038554]
[1734357694926,0.07807721,103760.0,103750.0,0.038554]
[1734357695516,0.07807721,103760.0,103750.0,0.04457193]
[1734357695726,0.0768724,103760.0,103750.0,0.04457193]
[1734357696538,0.0768724,103760.0,103750.0,0.038554]
[1734357696742,0.0768724,103760.0,103750.0,0.13106142]
[1734357697674,0.07807718,103760.0,103750.0,0.13106142]
[1734357697905,0.07807718,103760.0,103750.0,0.12504359]
[1734357698864,0.07807718,103760.0,103750.0,0.13106146]
[1734357699814,0.07807718,103760.0,103750.0,0.13104699]
[1734357702492,0.0001724,103760.0,103750.0,0.23791496]
[1734357702686,0.0001724,103760.0,103750.0,0.37335773]
[1734357702895,0.0001724,103760.0,103750.0,0.69902067]
[1734357703097,0.0001724,103760.0,103750.0,0.92975055]
[1734357703291,0.0001724,103760.0,103750.0,0.84329059]
[1734357703513,0.0001724,103760.0,103750.0,0.92974125]
[1734357703724,0.0001724,103760.0,103750.0,0.84329059]
[1734357704157,0.0001724,103760.0,103750.0,0.90019059]
[1734357704518,0.0001724,103760.0,103750.0,1.38662725]
[1734357706342,0.0001724,103760.0,103750.0,1.38060938]
[1734357706534,0.0001724,103760.0,103750.0,1.11353879]
[1734357706735,0.0001724,103760.0,103750.0,0.7801579]
[1734357706940,0.0001724,103760.0,103750.0,0.81269468]
[1734357707933,0.0001724,103760.0,103750.0,0.81871192]
[1734357708132,0.0793724,103760.0,103750.0,0.7040079]
[1734357708336,0.0793724,103760.0,103750.0,0.6810079]
[1734357708533,0.12837716,103760.0,103750.0,0.55601724]
[1734357709091,0.12837716,103760.0,103750.0,0.59457124]
[1734357712297,0.12837716,103760.0,103750.0,0.55601724]
[1734357712462,0.32112916,103760.0,103750.0,0.55601724]
[1734357712785,0.3199244,103760.0,103750.0,0.55601724]
[1734357713015,0.3199244,103760.0,103750.0,0.55601781]
[1734357713209,0.3199244,103760.0,103750.0,0.55]
[1734357713210,0.1271724,103760.0,103750.0,0.55]
[1734357713412,0.12837722,103760.0,103750.0,0.59457179]
[1734357713641,0.0793724,103760.0,103750.0,0.70143976]
[1734357713968,0.0793724,103760.0,103750.0,0.59457179]
[1734357714849,0.0793724,103760.0,103750.0,0.70143976]
[1734357715216,0.0001724,103760.0,103750.0,0.70143976]
[1734357716034,0.0001724,103760.0,103750.0,0.78787642]
[1734357716198,0.0001724,103760.0,103750.0,0.78787612]
[1734357716405,0.0001724,103760.0,103750.0,0.78796232]
[1734357716644,0.0001724,103760.0,103750.0,0.91756103]
[1734357717291,0.0001724,103760.0,103750.0,0.94056103]
[1734357718267,0.0001724,103760.0,103750.0,1.11351128]
[1734357719512,0.0001724,103760.0,103750.0,1.10749379]
[1734357719650,0.0001724,103760.0,103750.0,1.11351099]
[1734357720256,0.0001724,103760.0,103750.0,1.00664302]
[1734357720459,0.0001724,103760.0,103750.0,0.70409411]
[1734357720665,0.0825724,103760.0,103750.0,0.68109411]
[1734357720858,0.0825724,103760.0,103750.0,0.91756079]
[1734357721066,0.0001724,103760.0,103750.0,0.94056079]
[1734357721710,0.0001724,103760.0,103750.0,0.93454354]
[1734357721956,0.0001724,103760.0,103750.0,0.94056078]
[1734357722531,0.0001724,103760.0,103750.0,1.11351103]
[1734357724049,0.0001724,103760.0,103750.0,0.94056078]
[1734357724904,0.0001724,103760.0,103750.0,0.61844501]
[1734357728277,0.0001724,103760.0,103750.0,0.61242777]
[1734357728474,0.0001724,103760.0,103750.0,0.61844499]
[1734357728681,0.0001724,103760.0,103750.0,0.8980437]
[1734357728880,0.0001724,103760.0,103750.0,1.07072899]
[1734357729084,0.0001724,103760.0,103750.0,1.191514]
[1734357729452,0.0001724,103760.0,103750.0,1.18293732]
[1734357730046,0.07613404,103780.0,103770.0,0.038546]
[1734357730249,0.07613404,103780.0,103770.0,0.15143119]
[1734357730671,0.07613404,103780.0,103770.0,0.30143119]
[1734357731024,0.07613404,103780.0,103770.0,0.32443119]
[1734357731160,0.07613404,103780.0,103770.0,0.41085993]
[1734357731345,0.0455724,103790.0,103780.0,0.038543]
[1734357731571,0.0455724,103790.0,103780.0,0.15142676]
[1734357731778,0.0455724,103790.0,103780.0,0.29541097]
[1734357732019,0.0455724,103790.0,103780.0,0.3014266]
[1734357733152,0.1221724,103790.0,103780.0,0.3014266]
[1734357733785,0.1221724,103790.0,103780.0,0.19455863]
[1734357734134,0.1221724,103790.0,103780.0,0.3014266]
[1734357734484,0.1221724,103790.0,103780.0,0.19455863]
[1734357734908,0.1221724,103790.0,103780.0,0.188543]
[1734357735105,0.1221724,103790.0,103780.0,0.1945587]
[1734357737452,0.1221724,103790.0,103780.0,0.30142667]
[1734357737750,0.0767724,103790.0,103780.0,0.30142667]
[1734357738169,0.0767724,103790.0,103780.0,0.32442656]
[1734357738810,0.0001724,103790.0,103780.0,0.32442656]
[1734357739036,0.0001724,103790.0,103780.0,0.35398532]
[1734357739438,0.0001724,103790.0,103780.0,0.44035846]
[1734357740042,0.0001724,103790.0,103780.0,0.53464916]
[1734357740378,0.0001724,103790.0,103780.0,0.99092091]
[1734357740556,0.0001724,103790.0,103780.0,0.91835176]
[1734357740761,0.0001724,103790.0,103780.0,0.7455929]
[1734357741381,0.0001724,103790.0,103780.0,0.73957731]
[1734357741582,0.0001724,103790.0,103780.0,0.76310046]
[1734357741800,0.0001724,103790.0,103780.0,0.76911469]
[1734357742219,0.0001724,103790.0,103780.0,0.94150911]
[1734357744828,0.0001724,103790.0,103780.0,0.94150904]
[1734357745192,0.0001724,103790.0,103780.0,1.07069456]
[1734357746081,4e-07,103790.0,103780.0,0.92598259]
[1734357746254,4e-07,103790.0,103780.0,1.14657495]
[1734357746454,4e-07,103790.0,103780.0,0.96836843]
[1734357747094,0.0797,103820.0,103810.0,0.038531]
[1734357747312,0.0797,103820.0,103810.0,0.42376776]
[1734357747538,0.0797,103820.0,103810.0,0.46414895]
[1734357748058,0.1293726,103830.0,103810.0,0.54120995]
[1734357748319,0.12993545,103830.0,103820.0,0.31868541]
[1734357748547,0.12993545,103830.0,103820.0,0.34055215]
[1734357748809,0.12993545,103830.0,103820.0,0.36985525]
[1734357749038,0.0001724,103850.0,103830.0,0.25568387]
[1734357749278,0.00034114,103850.0,103840.0,0.43483485]
[1734357749511,0.00034114,103850.0,103840.0,0.46707024]
[1734357749752,0.00034114,103850.0,103840.0,0.4730839]
[1734357750260,0.00034114,103850.0,103840.0,0.36621593]
[1734357750509,0.00034114,103850.0,103840.0,0.4730839]
[1734357753507,4e-07,103870.0,103850.0,0.188514]
[1734357753715,0.1293724,103900.0,103890.0,0.038502]
[1734357753990,0.1293724,103900.0,103890.0,0.0445123]
[1734357754242,0.1293724,103900.0,103890.0,0.24149706]
[1734357754938,0.12954105,103900.0,103890.0,0.24149706]
[1734357755500,0.12954105,103900.0,103890.0,0.23548676]
[1734357755751,0.12954105,103900.0,103890.0,0.24149594]
[1734357756295,0.12954105,103900.0,103890.0,0.19451118]
[1734357757242,0.1307442,103900.0,103890.0,0.19451118]
[1734357757477,0.12954105,103900.0,103890.0,0.19451118]
[1734357760633,0.32203305,103900.0,103890.0,0.00600918]
[1734357760873,0.32203305,103900.0,103870.0,0.077014]
[1734357760874,0.0774,103890.0,103870.0,0.077014]
[1734357761127,0.07860329,103890.0,103870.0,0.11946721]
[1734357761371,0.27111429,103890.0,103870.0,0.08302437]
[1734357761595,0.1310033,103880.0,103870.0,0.00601037]
[1734357762108,0.1298,103880.0,103870.0,0.038509]
[1734357762347,0.1298,103880.0,103870.0,0.04452]
[1734357762849,0.1298,103880.0,103870.0,0.006011]
[1734357763073,0.13100339,103880.0,103870.0,0.04452]
[1734357763896,0.13100339,103880.0,103870.0,0.19452]
[1734357764154,0.13100339,103880.0,103870.0,0.006011]
[1734357764369,0.32353239,103880.0,103870.0,0.006011]
[1734357764600,0.322329,103880.0,103870.0,0.006011]
[1734357765119,0.1298,103880.0,103870.0,0.006011]
[1734357765341,0.32353239,103880.0,103870.0,0.006011]
[1734357765573,0.322329,103880.0,103870.0,0.006011]
[1734357766322,0.4166197,103880.0,103870.0,0.006011]
[1734357766531,0.4666197,103880.0,103870.0,0.006011]
[1734357766736,0.0799,103850.0,103840.0,0.0772084]
[1734357766957,0.0799,103850.0,103840.0,0.08322065]
[1734357767184,0.0799,103850.0,103840.0,0.05973187]
[1734357767934,0.0799,103850.0,103840.0,0.04470265]
[1734357768133,0.0799,103850.0,103840.0,0.04487139]
[1734357768792,0.0799,103850.0,103840.0,0.20990268]
[1734357770001,0.0799,103850.0,103840.0,0.19487139]
[1734357770581,0.27368866,103850.0,103840.0,0.15635339]
[1734357770796,0.272485,103850.0,103840.0,0.15635339]
[1734357772467,0.272485,103850.0,103840.0,0.00635339]
[1734357773491,0.3667757,103850.0,103840.0,0.00635339]
[1734357774643,0.0799,103850.0,103840.0,0.26322136]
[1734357774852,0.1307,103860.0,103850.0,0.061517]
[1734357774995,0.0824,103870.0,103860.0,0.22702]
[1734357775197,0.0824,103870.0,103860.0,0.33990022]
[1734357775402,0.0824861,103870.0,103860.0,0.36290022]
[1734357775609,8.61e-05,103870.0,103860.0,0.36290022]
[1734357776398,8.61e-05,103870.0,103860.0,0.56405889]
[1734357776593,8.61e-05,103870.0,103860.0,0.45719092]
[1734357776867,8.61e-05,103870.0,103860.0,0.56405889]
[1734357777071,8.61e-05,103870.0,103860.0,0.45719092]
[1734357777359,8.61e-05,103870.0,103860.0,0.56405889]
[1734357777512,8.61e-05,103870.0,103860.0,0.58747002]
[1734357778098,8.61e-05,103870.0,103860.0,0.5934797]
[1734357779166,8.61e-05,103870.0,103860.0,0.59347965]
[1734357779369,8.61e-05,103870.0,103860.0,0.62436035]
[1734357780086,8.61e-05,103870.0,103860.0,0.67436035]
[1734357780304,8.61e-05,103870.0,103860.0,0.73136035]
[1734357781858,8.61e-05,103870.0,103860.0,0.72535072]
[1734357782033,8.61e-05,103870.0,103860.0,0.73135994]
[1734357784303,8.61e-05,103870.0,103860.0,0.68135994]
[1734357784507,8.61e-05,103870.0,103860.0,0.59493656]
[1734357784920,8.61e-05,103870.0,103860.0,0.59493732]
[1734357785332,8.61e-05,103870.0,103860.0,0.57193732]
[1734357785532,8.61e-05,103870.0,103860.0,0.46506935]
[1734357786352,8.61e-05,103870.0,103860.0,0.46524155]
[1734357786550,8.61e-05,103870.0,103860.0,0.22095085]
[1734357787009,0.0467861,103870.0,103860.0,0.11408288]
[1734357787555,0.0467861,103870.0,103860.0,0.04469118]
[1734357787967,0.04798955,103870.0,103860.0,0.00618218]
[1734357788175,0.24053755,103870.0,103860.0,0.00618218]
[1734357788377,0.2393341,103870.0,103860.0,0.00618218]
[1734357789034,0.0467861,103870.0,103860.0,0.04469518]
[1734357789677,0.04798956,103870.0,103860.0,0.19469518]
[1734357790124,0.04798956,103870.0,103860.0,0.43143112]
[1734357790331,8.61e-05,103870.0,103860.0,0.34466599]
[1734357790512,8.61e-05,103870.0,103860.0,0.32456315]
[1734357791359,8.61e-05,103870.0,103860.0,0.52572182]
[1734357791552,8.61e-05,103870.0,103860.0,0.54231369]
[1734357792542,8.61e-05,103870.0,103860.0,0.43544572]
[1734357793539,8.61e-05,103870.0,103860.0,0.54231369]
[1734357794144,8.61e-05,103870.0,103860.0,0.41885476]
[1734357794343,8.61e-05,103870.0,103860.0,0.43544572]
[1734357794519,8.61e-05,103870.0,103860.0,0.41885476]
[1734357794909,8.61e-05,103870.0,103860.0,0.43544572]
[1734357795108,8.61e-05,103870.0,103860.0,0.41885476]
[1734357795525,0.0673861,103880.0,103870.0,0.29537697]
[1734357795890,0.0673861,103880.0,103870.0,0.30138786]
[1734357796794,0.0673861,103880.0,103870.0,0.32438786]
[1734357798073,0.0673861,103880.0,103870.0,0.21751989]
[1734357798842,0.0673861,103880.0,103870.0,0.32438786]
[1734357799232,0.0674722,103880.0,103870.0,0.21751989]
[1734357799717,0.26120448,103880.0,103870.0,0.15601089]
[1734357800002,0.0674722,103880.0,103870.0,0.19451989]
[1734357800827,0.06867558,103880.0,103870.0,0.19451989]
[1734357802065,0.06867558,103880.0,103870.0,0.19451978]
[1734357805034,0.06867558,103880.0,103870.0,0.19451991]
[1734357807594,0.0674722,103880.0,103870.0,0.19451991]
[1734357807794,0.0674722,103880.0,103870.0,0.32438788]
[1734357808044,0.0674722,103880.0,103870.0,0.41867858]
[1734357808193,0.0674722,103880.0,103870.0,0.41266767]
[1734357808194,8.61e-05,103880.0,103870.0,0.41266767]
[1734357808381,8.61e-05,103880.0,103870.0,0.50466318]
[1734357809224,8.61e-05,103880.0,103870.0,0.63364122]
[1734357809431,8.61e-05,103880.0,103870.0,0.88849815]
[1734357809633,8.61e-05,103880.0,103870.0,0.87761194]
[1734357810538,8.61e-05,103880.0,103870.0,0.8825491]
[1734357810745,8.61e-05,103880.0,103870.0,1.01152715]
[1734357810954,8.61e-05,103880.0,103870.0,1.01169935]
[1734357811608,8.61e-05,103880.0,103870.0,1.00676219]
[1734357813724,1e-07,103880.0,103870.0,1.19501822]
[1734357813956,1e-07,103880.0,103870.0,0.89406946]
[1734357814162,1e-07,103880.0,103870.0,1.15202555]
[1734357814595,1e-07,103880.0,103870.0,0.89406946]
[1734357814811,1e-07,103880.0,103870.0,0.86761856]
[1734357815020,1e-07,103880.0,103870.0,0.76075059]
[1734357815232,1e-07,103880.0,103870.0,1.12557465]
[1734357815433,1e-07,103880.0,103870.0,1.17307171]
[1734357815987,1e-07,103880.0,103870.0,0.86761856]
[1734357816309,1e-07,103880.0,103870.0,1.12557465]
[1734357817019,1e-07,103880.0,103870.0,1.01870668]
[1734357817239,1e-07,103880.0,103870.0,0.80374327]
[1734357817440,1e-07,103880.0,103870.0,1.12519862]
[1734357817706,1e-07,103880.0,103870.0,0.91040613]
[1734357817907,1e-07,103880.0,103870.0,0.93918963]
[1734357818082,1e-07,103880.0,103870.0,1.37820563]
[1734357818223,1e-07,103880.0,103870.0,1.12045287]
[1734357818432,0.0001724,103900.0,103880.0,0.300006]
[1734357818632,0.0001724,103900.0,103890.0,1.08228234]
[1734357818945,0.0001724,103900.0,103890.0,1.08829071]
[1734357819149,0.0001724,103900.0,103890.0,1.04084004]
[1734357819352,0.0001724,103900.0,103890.0,1.16525084]
[1734357819568,0.00034105,103900.0,103890.0,1.08643238]
[1734357820194,0.00034105,103900.0,103890.0,0.90780453]
[1734357820450,0.00034105,103900.0,103890.0,1.07966617]
[1734357821432,0.00034105,103900.0,103890.0,1.08655237]
[1734357821634,0.00034105,103900.0,103890.0,1.11365175]
[1734357822039,0.00034105,103900.0,103890.0,1.10764355]
[1734357822279,0.00034105,103900.0,103890.0,0.9847655]
[1734357822643,0.00034105,103900.0,103890.0,1.11362413]
[1734357824122,0.00034105,103900.0,103890.0,1.10653379]
[1734357824505,0.00034105,103900.0,103890.0,1.18641136]
[1734357824911,0.00034105,103900.0,103890.0,0.97167718]
[1734357825402,0.00034105,103900.0,103890.0,0.79981554]
[1734357825641,0.00034105,103900.0,103890.0,0.67095691]
[1734357826411,0.00034105,103900.0,103890.0,0.67696555]
[1734357827509,0.00034105,103900.0,103890.0,0.68040485]
[1734357827720,0.00034105,103900.0,103890.0,0.68384415]
[1734357827963,0.00034105,103900.0,103890.0,0.68384418]
[1734357828165,0.00034105,103900.0,103890.0,0.67696558]
[1734357828366,0.00034105,103900.0,103890.0,0.79981554]
[1734357828566,0.00034105,103900.0,103890.0,0.80582421]
[1734357828791,0.08334105,103900.0,103890.0,0.11005322]
[1734357829003,0.13194105,103900.0,103890.0,0.07161022]
[1734357829634,0.13194105,103900.0,103890.0,0.04451067]
[1734357829990,0.13194105,103900.0,103890.0,0.19451067]
[1734357830262,0.13194105,103900.0,103890.0,0.00600867]
[1734357830481,0.32563614,103900.0,103890.0,0.00600867]
[1734357830712,0.32443305,103900.0,103890.0,0.00600867]
[1734357831478,0.32443305,103900.0,103880.0,0.18387297]
[1734357831479,0.43393305,103900.0,103880.0,0.18387297]
[1734357831675,0.43393305,103900.0,103880.0,0.15138021]
[1734357831947,0.62643705,103900.0,103880.0,0.15138021]
[1734357832144,0.0751,103890.0,103880.0,0.30138021]
[1734357832349,0.0751,103890.0,103880.0,0.19451224]
[1734357832770,0.1206,103890.0,103880.0,0.19451224]
[1734357833024,0.1206,103890.0,103880.0,0.33187319]
[1734357833204,0.0751,103890.0,103880.0,0.42616389]
[1734357833409,0.0751,103890.0,103880.0,0.51204961]
[1734357833613,0.0751,103890.0,103880.0,0.50455663]
[1734357834655,0.0751,103890.0,103880.0,0.50472923]
[1734357834865,0.0751,103890.0,103880.0,0.35065066]
[1734357835076,0.0751,103890.0,103880.0,0.38915466]
[1734357835495,0.0751,103890.0,103880.0,0.29554457]
[1734357839438,0.0751,103890.0,103880.0,0.1886766]
[1734357841375,0.1238,103890.0,103880.0,0.1886766]
[1734357844927,0.1238,103890.0,103880.0,0.1501726]
[1734357845892,0.1238,103890.0,103880.0,0.1886776]
[1734357846539,0.31751421,103890.0,103880.0,0.1501726]
[1734357846776,0.316311,103890.0,103880.0,0.1501726]
[1734357847008,0.316311,103890.0,103880.0,0.15618311]
[1734357847223,0.1238,103890.0,103880.0,0.15618311]
[1734357847431,0.31751421,103890.0,103880.0,0.15618311]
[1734357847632,0.3163973,103890.0,103880.0,0.15618311]
[1734357847839,0.3163973,103890.0,103880.0,0.00618311]
[1734357849783,0.1238863,103890.0,103880.0,0.04468811]
[1734357850035,0.1250896,103890.0,103880.0,0.00618311]
[1734357850238,0.3176006,103890.0,103880.0,0.0001726]
[1734357850443,0.3163973,103890.0,103880.0,0.0061832]
[1734357850658,0.3163973,103890.0,103880.0,0.00618341]
[1734357851569,0.1238863,103890.0,103880.0,0.30155638]
[1734357852000,0.1238863,103890.0,103880.0,0.10686797]
[1734357852209,0.1238863,103890.0,103880.0,0.14537297]
[1734357853285,0.12364815,103890.0,103880.0,0.14537297]
[1734357853487,0.12364815,103890.0,103880.0,0.038505]
[1734357853962,0.12364815,103890.0,103880.0,0.188505]
[1734357856711,0.07494815,103890.0,103880.0,0.2997892]
[1734357857882,8.63e-05,103890.0,103880.0,0.4170799]
[1734357858020,8.63e-05,103890.0,103880.0,0.42525236]
[1734357858262,8.63e-05,103890.0,103880.0,0.49745236]
[1734357858459,8.63e-05,103890.0,103880.0,0.6265781]
[1734357859322,8.63e-05,103890.0,103880.0,0.6267507]
[1734357861702,8.63e-05,103890.0,103880.0,0.62666874]
[1734357861911,8.63e-05,103890.0,103880.0,0.61849628]
[1734357862096,8.63e-05,103890.0,103880.0,1.00562762]
[1734357862962,8.63e-05,103890.0,103880.0,1.01380008]
[1734357863167,8.63e-05,103890.0,103880.0,1.00971385]
[1734357863375,8.63e-05,103890.0,103880.0,0.93342762]
[1734357863906,8.63e-05,103890.0,103880.0,1.02549022]
[1734357864316,8.63e-05,103890.0,103880.0,0.81041725]
[1734357864539,8.63e-05,103890.0,103880.0,0.81042793]
[1734357866188,8.63e-05,103890.0,103880.0,0.81064]
[1734357866765,8.63e-05,103890.0,103880.0,0.80463082]
[1734357866986,8.63e-05,103890.0,103880.0,0.81064]
[1734357868619,8.63e-05,103890.0,103880.0,0.91898221]
[1734357868861,8.63e-05,103890.0,103880.0,0.70377203]
[1734357870321,8.63e-05,103890.0,103880.0,0.70377232]
[1734357870736,8.63e-05,103890.0,103880.0,0.70412952]
[1734357870945,8.63e-05,103890.0,103880.0,0.81099749]
[1734357871323,8.63e-05,103890.0,103880.0,1.02640612]
[1734357871528,8.63e-05,103890.0,103880.0,0.94024267]
[1734357872087,8.63e-05,103890.0,103880.0,1.02640698]
[1734357872290,8.63e-05,103890.0,103880.0,0.94024267]
[1734357873633,8.63e-05,103890.0,103880.0,0.94024239]
[1734357874367,8.63e-05,103890.0,103880.0,0.86929518]
[1734357874569,8.63e-05,103890.0,103880.0,0.89101206]
[1734357874814,8.63e-05,103890.0,103880.0,0.69696828]
[1734357875231,8.63e-05,103890.0,103880.0,0.74009936]
[1734357875971,8.63e-05,103890.0,103880.0,0.64698788]
[1734357877008,8.63e-05,103890.0,103880.0,0.63868992]
[1734357877762,8.63e-05,103890.0,103880.0,0.6470005]
[1734357878236,8.63e-05,103890.0,103880.0,0.43157227]
[1734357878443,8.63e-05,103890.0,103880.0,0.69011198]
[1734357878856,8.63e-05,103890.0,103880.0,0.64694219]
[1734357879100,8.63e-05,103890.0,103880.0,0.47001927]
[1734357879248,8.63e-05,103890.0,103880.0,0.68536973]
[1734357879681,8.63e-05,103890.0,103880.0,0.72855898]
[1734357879898,8.63e-05,103890.0,103880.0,0.72844596]
[1734357880175,8.63e-05,103890.0,103880.0,0.68537978]
[1734357880353,8.63e-05,103890.0,103880.0,0.72844552]
[1734357880555,8.63e-05,103890.0,103880.0,0.72013492]
[1734357881193,8.63e-05,103890.0,103880.0,0.67705393]
[1734357882406,8.63e-05,103890.0,103880.0,0.84933296]
[1734357882609,8.63e-05,103890.0,103880.0,0.67705393]
[1734357883095,8.63e-05,103890.0,103880.0,0.84933383]
[1734357884028,8.63e-05,103890.0,103880.0,0.87168308]
[1734357884260,8.63e-05,103890.0,103880.0,0.95555105]
[1734357884480,0.1237863,103890.0,103880.0,0.50414004]
[1734357884756,0.1237863,103890.0,103880.0,0.71951477]
[1734357884951,0.1237863,103890.0,103880.0,0.82638274]
[1734357885444,0.1237863,103890.0,103880.0,0.83469332]
[1734357885729,0.1237863,103890.0,103880.0,0.85769332]
[1734357885989,8.63e-05,103890.0,103880.0,0.85769332]
[1734357886487,8.63e-05,103890.0,103880.0,0.98689497]
[1734357886723,8.63e-05,103890.0,103880.0,0.85168459]
[1734357886957,8.63e-05,103890.0,103880.0,0.85769372]
[1734357888297,8.63e-05,103890.0,103880.0,0.85168459]
[1734357888594,8.63e-05,103890.0,103880.0,0.81924659]
[1734357888816,8.63e-05,103890.0,103880.0,0.81093601]
[1734357890630,8.63e-05,103890.0,103880.0,0.63863623]
[1734357890887,8.63e-05,103890.0,103880.0,0.81090499]
[1734357891359,8.63e-05,103890.0,103880.0,0.63863623]
[1734357891595,8.63e-05,103890.0,103880.0,0.81091965]
[1734357892071,8.63e-05,103890.0,103880.0,0.63863623]
[1734357893919,8.63e-05,103890.0,103880.0,0.63867145]
[1734357896615,8.63e-05,103890.0,103880.0,0.65792445]
[1734357896819,8.63e-05,103890.0,103880.0,0.4425145]
[1734357898158,8.63e-05,103890.0,103880.0,0.47553431]
[1734357899919,8.63e-05,103890.0,103880.0,0.73438795]
[1734357900375,8.63e-05,103890.0,103880.0,0.73438803]
[1734357900868,0.1314863,103890.0,103880.0,0.73438803]
[1734357901106,0.1314863,103890.0,103880.0,0.59450025]
[1734357901329,0.1314863,103890.0,103880.0,0.66444414]
[1734357901558,0.1314863,103890.0,103880.0,0.47553439]
[1734357902284,0.1314863,103890.0,103880.0,0.4055905]
[1734357902913,0.1314863,103890.0,103880.0,0.47553439]
[1734357903171,0.1314863,103890.0,103880.0,0.48384497]
[1734357905534,0.1314863,103890.0,103880.0,0.47783589]
[1734357905744,0.1314863,103890.0,103880.0,0.34395719]
[1734357905955,0.1314863,103890.0,103880.0,0.41390108]
[1734357907326,0.1314863,103890.0,103880.0,0.4055905]
[1734357907528,0.1314863,103890.0,103880.0,0.47553439]
[1734357908738,0.1314863,103890.0,103880.0,0.47553444]
[1734357909077,0.1314863,103890.0,103880.0,0.73462208]
[1734357909513,0.1314863,103890.0,103880.0,0.47553444]
[1734357909946,0.1314863,103890.0,103880.0,0.48384502]
[1734357910126,0.0827863,103890.0,103880.0,0.48384502]
[1734357910340,0.0827863,103890.0,103880.0,0.49593924]
[1734357910779,0.0827863,103890.0,103880.0,0.48384502]
[1734357911406,0.0827863,103890.0,103880.0,0.45774432]
[1734357914102,0.0827863,103890.0,103880.0,0.49414193]
[1734357915109,0.0827863,103890.0,103880.0,0.49414161]
[1734357915307,0.0827863,103890.0,103880.0,0.75295337]
[1734357915932,0.0827863,103890.0,103880.0,0.49414161]
[1734357916134,0.0827863,103890.0,103880.0,0.75295337]
[1734357916921,0.0827863,103890.0,103880.0,0.75312577]
[1734357917340,0.0827863,103890.0,103880.0,0.74481519]
[1734357918069,0.1284863,103890.0,103880.0,0.74481519]
[1734357918487,0.1284863,103890.0,103880.0,0.7447796]
[1734357918908,0.1284863,103890.0,103880.0,0.48600343]
[1734357919944,0.1284863,103890.0,103880.0,0.32176884]
[1734357920121,0.1284863,103890.0,103880.0,0.25182495]
[1734357920336,0.1284863,103890.0,103880.0,0.53747465]
[1734357921306,0.1284863,103890.0,103880.0,0.58054501]
[1734357921638,0.1284863,103890.0,103880.0,0.48985999]
[1734357921844,0.1284863,103890.0,103880.0,0.51677896]
[1734357922088,0.1284863,103890.0,103880.0,0.68938585]
[1734357922324,0.1284863,103890.0,103880.0,0.51077015]
[1734357922888,0.1284863,103890.0,103880.0,0.51072262]
[1734357923841,0.1284863,103890.0,103880.0,0.68327561]
[1734357925216,0.1284863,103890.0,103880.0,0.81262243]
[1734357926092,8.63e-05,103890.0,103880.0,1.07811749]
[1734357926244,0.07694105,103900.0,103890.0,0.211502]
[1734357926463,0.07694105,103900.0,103890.0,0.64289763]
[1734357927519,0.07694105,103900.0,103890.0,0.64266265]
[1734357928599,0.00034105,103900.0,103890.0,0.71260654]
[1734357928800,5e-08,103900.0,103890.0,0.83585012]
[1734357929006,0.1236,103930.0,103890.0,1.02799401]
[1734357929188,0.12365619,103930.0,103920.0,0.59922511]
[1734357929387,0.12365619,103930.0,103920.0,0.5751032]
[1734357929660,0.12365619,103930.0,103920.0,0.61818477]
[1734357930049,0.12365619,103930.0,103920.0,0.58481219]
[1734357930251,0.12365619,103930.0,103920.0,0.5414406]
[1734357931255,0.12365619,103930.0,103920.0,0.7134564]
[1734357931618,1.9e-07,103930.0,103920.0,0.83561809]
[1734357931821,1.9e-07,103930.0,103920.0,0.85838505]
[1734357932124,1.9e-07,103930.0,103920.0,1.23930495]
[1734357932356,1.9e-07,103930.0,103920.0,1.19610825]
[1734357932558,1.9e-07,103930.0,103920.0,0.98157141]
[1734357933199,1.9e-07,103930.0,103920.0,0.85746405]
[1734357934124,1.9e-07,103930.0,103920.0,0.67753373]
[1734357934335,1.9e-07,103930.0,103920.0,0.83446405]
[1734357935347,1.9e-07,103930.0,103920.0,0.85746405]
[1734357936128,1.9e-07,103930.0,103920.0,0.85026681]
[1734357937667,1.9e-07,103930.0,103920.0,0.83469709]
[1734357937869,1.9e-07,103930.0,103920.0,0.85026681]
[1734357938063,1.9e-07,103930.0,103920.0,0.88931913]
[1734357939104,1.9e-07,103930.0,103920.0,0.93931913]
[1734357940347,1.9e-07,103930.0,103920.0,0.93949153]
[1734357940551,3.9e-07,103930.0,103920.0,0.93949153]
[1734357941210,3.9e-07,103930.0,103920.0,0.93878414]
[1734357941709,3.9e-07,103930.0,103920.0,0.94717816]
[1734357942327,3.9e-07,103930.0,103920.0,1.16126833]
[1734357942529,3.9e-07,103930.0,103920.0,0.90440731]
[1734357942925,3.9e-07,103930.0,103920.0,0.67392837]
[1734357943062,3.9e-07,103930.0,103920.0,1.07190179]
[1734357943265,3.9e-07,103930.0,103920.0,0.97370317]
[1734357943637,3.9e-07,103930.0,103920.0,0.96538659]
[1734357943844,3.9e-07,103930.0,103920.0,0.81538659]
[1734357944068,3.9e-07,103930.0,103920.0,0.80179577]
[1734357945138,3.9e-07,103930.0,103920.0,0.95179577]
[1734357945353,3.9e-07,103930.0,103920.0,0.78050071]
[1734357945957,3.9e-07,103930.0,103920.0,0.67398551]
[1734357946178,3.9e-07,103930.0,103920.0,0.78050071]
[1734357946384,3.9e-07,103930.0,103920.0,0.83050071]
[1734357946583,3.9e-07,103930.0,103920.0,1.00179577]
[1734357946813,3.9e-07,103930.0,103920.0,0.95179577]
[1734357948487,3.9e-07,103930.0,103920.0,1.13622427]
[1734357948635,3.9e-07,103930.0,103920.0,1.2218567]
[1734357949063,3.9e-07,103930.0,103920.0,1.1718567]
[1734357949898,3.9e-07,103930.0,103920.0,1.19543658]
[1734357950097,3.9e-07,103930.0,103920.0,1.19532293]
[1734357950845,3.9e-07,103930.0,103920.0,1.18931703]
[1734357951053,3.9e-07,103930.0,103920.0,1.1953229]
[1734357951277,3.9e-07,103930.0,103920.0,1.2453229]
[1734357952609,3.9e-07,103930.0,103920.0,1.22174302]
[1734357953057,3.9e-07,103930.0,103920.0,1.21342644]
[1734357953269,3.9e-07,103930.0,103920.0,0.70062651]
[1734357953458,3.9e-07,103930.0,103920.0,0.73911751]
[1734357954326,3.9e-07,103930.0,103920.0,0.74512338]
[1734357956281,3.9e-07,103930.0,103920.0,0.79156874]
[1734357958503,3.9e-07,103930.0,103920.0,0.78814468]
[1734357960935,3.9e-07,103930.0,103920.0,0.53151925]
[1734357961134,0.12350039,103930.0,103920.0,0.53151925]
[1734357961277,0.12350039,103930.0,103920.0,0.58151925]
[1734357961482,0.12350039,103930.0,103920.0,0.53151925]
[1734357962129,0.12350039,103930.0,103920.0,0.58151925]
[1734357963106,0.12350039,103930.0,103920.0,0.91363525]
[1734357963766,0.12350039,103930.0,103920.0,0.86363525]
[1734357964010,0.12350039,103930.0,103920.0,0.84063525]
[1734357964841,0.12350039,103930.0,103920.0,0.84080765]
[1734357965043,0.12350039,103930.0,103920.0,0.60677939]
[1734357965192,0.12350039,103930.0,103920.0,0.27672238]
[1734357965401,0.12350039,103930.0,103920.0,0.15266613]
[1734357966085,0.12350039,103930.0,103920.0,0.15266739]
[1734357966889,0.12350039,103930.0,103920.0,0.30266739]
[1734357968100,0.12350039,103930.0,103920.0,0.23279861]
[1734357969067,0.12350039,103930.0,103920.0,0.2327987]
[1734357969295,0.12350039,103930.0,103920.0,0.31842495]
[1734357969491,0.12350039,103930.0,103920.0,0.55412373]